bitfinex-derivatives/quotes_BNBF0:USTF0_20250810
["timestamp","ask_amount","ask_price","bid_price","bid_amount"]
[1754862667514,0.21693597,803.11,802.76,1.1173875]
[1754862672420,0.21693597,803.11,802.7,1.1173875]
[1754862672921,0.21693597,803.11,802.71,1.1173875]
[1754862673121,0.21693597,803.11,802.72,1.1173875]
[1754862673620,0.21693597,803.11,802.71,1.1173875]
[1754862674017,0.21693597,803.11,802.72,1.1173875]
[1754862674521,0.83901514,803.38,802.64,1.1173875]
[1754862674818,0.21690419,803.02,802.64,1.1173875]
[1754862675021,0.83901514,803.38,802.64,1.1173875]
[1754862675416,0.21691501,802.93,802.64,1.1173875]
[1754862675621,0.83901514,803.38,802.64,1.1173875]
[1754862675920,0.21691501,802.86,802.64,1.1173875]
[1754862676221,0.83901514,803.38,802.64,1.1173875]
[1754862676430,0.21691501,802.81,802.64,1.1173875]
[1754862676828,0.83901514,803.38,802.64,1.1173875]
[1754862677025,0.21691501,802.77,802.64,1.1173875]
[1754862677426,0.83901514,803.38,802.64,1.1173875]
[1754862677631,0.21691501,802.74,802.64,1.1173875]
[1754862678030,0.83901514,803.38,802.64,1.1173875]
[1754862678230,0.21691501,802.72,802.64,1.1173875]
[1754862678429,0.83901514,803.38,802.64,1.1173875]
[1754862678728,0.21691501,802.71,802.64,1.1173875]
[1754862679030,0.83901514,803.37,802.66,1.1173875]
[1754862679433,0.21691501,802.7,802.66,1.1173875]
[1754862679730,0.83901514,803.37,802.66,1.1173875]
[1754862679931,0.21691433,802.7,802.66,1.1173875]
[1754862680233,0.83901514,803.37,802.66,1.1173875]
[1754862680630,0.21691433,802.7,802.66,1.1173875]
[1754862680828,0.83901514,803.37,802.66,1.1173875]
[1754862681130,0.21691433,802.7,802.66,1.1173875]
[1754862681434,0.83901514,803.37,802.66,1.1173875]
[1754862681634,0.21691433,802.7,802.66,1.1173875]
[1754862681931,0.83901514,803.37,802.66,1.1173875]
[1754862682130,0.83901514,803.3,802.74,1.1173875]
[1754862682931,0.83901514,803.36,802.67,1.1173875]
[1754862683534,0.21691433,803.19,802.67,1.1173875]
[1754862684330,0.21691433,803.19,802.76,1.1173875]
[1754862688136,0.21691433,803.19,802.77,1.1173875]
[1754862692739,0.21691433,803.19,802.79,0.67810367]
[1754862693035,0.21691433,803.19,802.85,0.67810367]
[1754862693238,0.21691433,803.19,802.85,0.12609332]
[1754862693939,0.21691433,803.19,802.7,1.679804]
[1754862694436,0.21691433,803.19,802.68,1.679804]
[1754862694837,0.21691433,803.19,802.73,1.679804]
[1754862704443,0.21691433,803.19,802.74,1.679804]
[1754862705748,0.21691433,803.19,802.22,2.8023031]
[1754862706443,0.21691433,803.19,802.18,2.8023031]
[1754862707444,0.21691433,803.19,802.23,2.8023031]
[1754862714759,0.21691433,803.19,802.18,2.8023031]
[1754862715960,0.21691433,803.19,802.19,2.8023031]
[1754862723060,0.21691433,803.19,801.94,2.8023031]
[1754862723265,0.21691433,803.19,802.76,1.1211111]
[1754862724567,0.21691433,803.19,802.84,1.1211111]
[1754862732773,0.21691433,803.19,802.91,0.71595876]
[1754862733073,0.21691433,803.19,802.91,0.15602662]
[1754862733874,0.21691433,803.19,802.76,1.6816747]
[1754862734471,0.21691433,803.19,802.72,1.6816747]
[1754862736571,0.21691433,803.19,802.73,1.6816747]
[1754862743186,0.21691433,803.19,802.64,1.6816747]
[1754862744395,0.21691433,803.19,802.63,1.6816747]
[1754862746188,0.21691433,803.19,802.65,1.6816747]
[1754862746785,0.21691433,803.19,802.66,1.6816747]
[1754862749690,0.21691433,803.19,802.64,1.6816747]
[1754862752792,0.21691433,803.19,802.7,1.6816747]
[1754862753992,0.21691433,803.19,802.66,1.6816747]
[1754862754293,0.21691433,803.19,802.67,1.6816747]
[1754862755292,0.21691433,803.19,802.66,1.6816747]
[1754862755793,0.21691433,803.19,802.67,1.6816747]
[1754862758997,0.21691433,803.19,802.68,1.6816747]
[1754862759491,0.21691433,803.19,802.7,1.6816747]
[1754862760896,0.21691433,803.19,802.71,1.6816747]
[1754862762897,0.21691433,803.19,802.85,1.1225216]
[1754862763799,0.21691433,803.19,802.74,1.6816747]
[1754862764505,0.21691433,803.19,802.66,1.6816747]
[1754862764800,0.21691433,803.19,802.63,1.6816747]
[1754862765703,0.21691433,803.19,802.68,1.6816747]
[1754862766202,0.21691433,803.19,802.55,1.6816747]
[1754862768005,0.21691433,803.19,802.52,1.6816747]
[1754862774608,0.21691433,803.19,802.61,1.6816747]
[1754862776210,0.21691433,803.19,802.68,1.6816747]
[1754862777814,0.21691433,803.19,802.76,1.6816747]
[1754862781719,0.21691433,803.19,802.65,1.6816747]
[1754862782522,0.21691433,803.19,802.58,1.6816747]
[1754862784218,0.21691433,803.19,802.59,1.6816747]
[1754862784518,0.21691433,803.19,802.57,1.6816747]
[1754862784918,0.21691433,803.19,802.58,1.6816747]
[1754862785921,0.21691433,803.19,802.57,1.6816747]
[1754862787120,0.21691433,803.19,802.56,1.6816747]
[1754862789924,0.21691433,803.19,801.77,2.8023031]
[1754862789925,0.21691433,803.19,802.57,1.6816747]
[1754862791124,0.21691433,803.19,802.55,1.6816747]
[1754862791434,0.21691433,803.19,802.58,1.6816747]
[1754862792432,0.21691433,803.19,802.63,1.6816747]
[1754862793334,0.21691433,803.19,802.62,1.6816747]
[1754862793838,0.21691433,803.19,802.8,1.1233237]
[1754862796937,0.21691433,803.19,802.82,1.1233237]
[1754862799742,0.21691433,803.19,802.69,1.1233237]
[1754862801041,0.21691433,803.19,802.7,1.1233237]
[1754862801540,0.21691433,803.19,802.68,1.1233237]
[1754862802045,0.21691433,803.19,802.69,1.1233237]
[1754862802946,0.21691433,803.19,802.68,1.1233237]
[1754862804542,0.21691433,803.19,802.67,1.1233237]
[1754862806443,0.21691433,803.19,802.44,1.6816747]
[1754862806444,0.21691433,803.19,802.66,1.1233237]
[1754862807050,0.21691433,803.19,802.67,1.1233237]
[1754862807446,0.21691433,803.19,802.68,1.1233237]
[1754862808252,0.21691433,803.19,802.67,1.1233237]
[1754862809459,0.21691433,803.19,802.66,1.1233237]
[1754862809656,0.21691433,803.19,802.72,1.1233237]
[1754862811355,0.21691433,803.19,802.73,1.1233237]
[1754862812858,0.21691433,803.19,802.74,1.1233237]
[1754862814458,0.21691433,803.19,802.66,1.1233237]
[1754862815055,0.21691433,803.19,802.67,1.1233237]
[1754862815258,0.21691433,803.19,802.66,1.1233237]
[1754862815753,0.21691433,803.19,802.7,1.1233237]
[1754862815958,0.21691433,803.19,802.71,1.1233237]
[1754862816159,0.21691433,803.19,802.7,1.1233237]
[1754862816359,0.21691433,803.19,802.71,1.1233237]
[1754862816660,0.21691433,803.19,802.72,1.1233237]
[1754862817057,0.21691433,803.19,802.75,1.1233237]
[1754862817256,0.21691433,803.19,802.77,1.1233237]
[1754862820064,0.21691433,803.19,802.78,1.1233237]
[1754862821761,0.21691433,803.19,802.79,1.1233237]
[1754862823766,0.21691433,803.19,802.72,1.1233237]
[1754862824266,0.21691433,803.19,802.71,1.1233237]
[1754862824466,0.21691433,803.19,802.7,1.1233237]
[1754862824667,0.21691433,803.19,802.78,1.1233237]
[1754862825263,0.21691433,803.19,802.77,1.1233237]
[1754862827964,0.21691433,803.19,802.9,1.1233237]
[1754862828168,0.21691433,803.19,802.89,1.1233237]
[1754862830264,0.21691433,803.19,802.88,1.1233237]
[1754862833167,0.21691433,803.19,802.87,1.1233237]
[1754862833871,0.21691433,803.19,802.86,1.1233237]
[1754862834466,0.21691433,803.19,802.87,1.1233237]
[1754862836169,0.21691433,803.19,802.86,1.1233237]
[1754862837775,0.21691433,803.19,802.9,1.1233237]
[1754862839471,0.21691433,803.19,802.89,1.1233237]
[1754862842976,0.21691433,803.19,802.86,1.1233237]
[1754862843677,0.21691433,803.19,802.88,1.1233237]
[1754862844578,0.21691433,803.19,802.89,1.1233237]
[1754862845173,0.21691433,803.19,802.88,1.1233237]
[1754862845874,0.21691433,803.19,802.89,1.1233237]
[1754862846274,0.21691433,803.19,802.88,1.1233237]
[1754862847176,0.21691433,803.19,802.89,1.1233237]
[1754862850983,0.21691433,803.19,802.88,1.1233237]
[1754862852784,0.21691433,803.19,802.93,1.1233237]
[1754862854588,0.21691433,803.19,802.86,1.1233237]
[1754862855284,0.21691433,803.19,802.85,1.1233237]
[1754862856189,0.21691433,803.19,802.86,1.1233237]
[1754862856391,0.21691433,803.19,802.85,1.1233237]
[1754862858190,0.21691433,803.19,802.86,1.1233237]
[1754862858392,0.21691433,803.19,802.85,1.1233237]
[1754862859287,0.21691433,803.19,802.73,1.6816747]
[1754862859288,0.21691433,803.19,802.86,1.1233237]
[1754862860991,0.21691433,803.19,802.85,1.1233237]
[1754862862893,0.21691433,803.19,802.79,1.1233237]
[1754862864395,0.21691433,803.19,802.8,1.1233237]
[1754862864591,0.21691433,803.19,802.88,1.1233237]
[1754862865592,0.21691433,803.19,802.89,1.1233237]
[1754862869296,0.21691433,803.19,802.9,1.1233237]
[1754862872504,0.21691433,803.19,802.88,1.1233237]
[1754862872796,0.21691433,803.19,802.92,1.1233237]
[1754862874098,0.21691433,803.19,802.93,1.1233237]
[1754862874401,0.21691433,803.19,802.92,1.1233237]
[1754862875202,0.21691433,803.19,802.93,1.1233237]
[1754862877201,0.21691433,803.19,802.94,1.1233237]
[1754862880306,0.21691433,803.19,802.95,1.1233237]
[1754862881506,0.21691433,803.19,802.96,1.1233237]
[1754862882213,0.21691433,803.19,802.99,1.1224633]
[1754862883013,0.21691433,803.19,802.83,1.6816747]
[1754862883211,0.21691433,803.19,802.31,2.8023031]
[1754862883212,0.21691433,803.19,802.84,1.6816747]
[1754862886114,0.21691433,803.19,802.85,1.6816747]
[1754862892916,0.21691433,803.19,802.73,1.6816747]
[1754862893421,0.84249897,803.56,802.73,1.6816747]
[1754862893718,0.21688324,803.08,802.73,1.6816747]
[1754862893914,0.84249897,803.56,802.73,1.6816747]
[1754862894215,0.21688324,803.0,802.73,1.6816747]
[1754862894416,0.84249897,803.56,802.73,1.6816747]
[1754862894719,0.21688324,802.94,802.74,1.6816747]
[1754862895117,0.84249897,803.56,802.74,1.6816747]
[1754862895316,0.21688256,802.9,802.74,1.6816747]
[1754862895620,0.84249897,803.56,802.74,1.6816747]
[1754862895920,0.21688256,802.87,802.74,1.6816747]
[1754862896216,0.84249897,803.56,802.74,1.6816747]
[1754862896519,0.21688256,802.84,802.75,1.6816747]
[1754862896820,0.84249897,803.56,802.75,1.6816747]
[1754862897116,0.21688189,802.82,802.75,1.6816747]
[1754862897420,0.84249897,803.55,802.75,1.6816747]
[1754862897616,0.21688256,802.81,802.75,1.6816747]
[1754862898020,0.84249897,803.55,802.75,1.6816747]
[1754862898219,0.21688256,802.8,802.75,1.6816747]
[1754862898520,0.84249897,803.55,802.75,1.6816747]
[1754862898717,0.21688256,802.79,802.75,1.6816747]
[1754862899019,0.84249897,803.55,802.75,1.6816747]
[1754862899318,0.21688256,802.79,802.75,1.6816747]
[1754862899618,0.84249897,803.55,802.75,1.6816747]
[1754862899916,0.21688256,802.79,802.75,1.6816747]
[1754862900223,0.84249897,803.55,802.75,1.6816747]
[1754862900522,0.21688256,802.79,802.75,1.6816747]
[1754862900718,0.84249897,803.55,802.75,1.6816747]
[1754862901019,0.21688256,802.79,802.75,1.6816747]
[1754862901318,0.84249897,803.55,802.75,1.6816747]
[1754862901622,0.21688256,802.79,802.75,1.6816747]
[1754862901919,0.84249897,803.55,802.75,1.6816747]
[1754862902217,0.21688256,802.79,802.76,1.6816747]
[1754862902621,0.84249897,803.55,802.76,1.6816747]
[1754862902822,0.84249897,803.49,802.86,1.6816747]
[1754862903022,0.21688189,803.36,802.86,1.6816747]
[1754862904522,0.21688189,803.36,802.78,1.6816747]
[1754862912330,0.21688189,803.36,802.91,1.1231751]
[1754862914540,0.21688189,803.36,802.97,1.1231751]
[1754862914740,0.21688189,803.36,802.83,1.6816747]
[1754862917636,0.21688189,803.36,802.31,2.8023031]
[1754862917637,0.21688189,803.36,802.82,1.6816747]
[1754862919641,0.21688189,803.36,802.66,1.6816747]
[1754862919837,0.21688189,803.36,802.56,1.6816747]
[1754862920137,0.21688189,803.36,802.53,1.6816747]
[1754862921241,0.21688189,803.36,802.52,1.6816747]
[1754862922341,0.21688189,803.36,802.51,1.6816747]
[1754862922842,0.21688189,803.36,802.49,1.6816747]
[1754862923043,0.21688189,803.36,802.45,1.6816747]
[1754862923342,0.21688189,803.36,802.44,1.6816747]
[1754862924242,0.21688189,803.36,802.43,1.6816747]
[1754862926339,0.21688189,803.36,802.42,1.6816747]
[1754862929044,0.21688189,803.36,802.45,1.6816747]
[1754862929644,0.21688189,803.36,802.46,1.6816747]
[1754862930440,0.21688189,803.36,802.39,1.6816747]
[1754862932242,0.21688189,803.36,802.38,1.6816747]
[1754862932840,0.21688189,803.36,802.43,1.6816747]
[1754862934042,0.21688189,803.36,802.45,1.6816747]
[1754862934247,0.21688189,803.36,802.44,1.6816747]
[1754862934643,0.21688189,803.36,802.45,1.6816747]
[1754862935244,0.21688189,803.36,802.44,1.6816747]
[1754862936446,0.21688189,803.36,802.45,1.6816747]
[1754862938046,0.21688189,803.36,802.42,1.6816747]
[1754862938949,0.21688189,803.36,802.45,1.6816747]
[1754862939146,0.21688189,803.36,801.78,2.8023031]
[1754862939147,0.21688189,803.36,802.43,1.6816747]
[1754862939348,0.21688189,803.36,802.42,1.6816747]
[1754862940146,0.21688189,803.36,802.45,1.6816747]
[1754862942255,0.21688189,803.36,802.44,1.6816747]
[1754862943551,0.21688189,803.36,802.45,1.6816747]
[1754862943850,0.21688189,803.36,802.44,1.6816747]
[1754862944554,0.21688189,803.36,802.36,1.6816747]
[1754862944855,0.21688189,803.36,802.53,1.1201667]
[1754862947151,0.21688189,803.36,802.54,1.1201667]
[1754862948157,0.21688189,803.36,802.57,1.1201667]
[1754862948357,0.21688189,803.36,802.46,1.1201667]
[1754862949055,0.21688189,803.36,802.48,1.1201667]
[1754862949958,0.21688189,803.36,802.42,1.1201667]
[1754862953154,0.21688189,803.36,802.39,1.1201667]
[1754862954759,0.21688189,803.36,802.46,1.1201667]
[1754862956658,0.21688189,803.36,802.45,1.1201667]
[1754862957161,0.21688189,803.36,802.46,1.1201667]
[1754862958161,0.21688189,803.36,802.45,1.1201667]
[1754862958359,0.21688189,803.36,802.48,1.1201667]
[1754862959362,0.21688189,803.36,802.49,1.1201667]
[1754862959759,0.21688189,803.36,802.53,1.1201667]
[1754862961464,0.21688189,803.36,802.55,1.1201667]
[1754862962966,0.21688189,803.36,802.59,1.1201667]
[1754862964567,0.21688189,803.36,802.6,1.1201667]
[1754862965967,0.21688189,803.36,802.61,1.1201667]
[1754862966267,0.21688189,803.36,802.62,1.1201667]
[1754862968068,0.21688189,803.36,802.63,1.1201667]
[1754862968270,0.21688189,803.36,802.64,1.1201667]
[1754862971166,0.21688189,803.36,802.65,1.1201667]
[1754862972370,0.21688189,803.36,802.64,1.1201667]
[1754862972569,0.21688189,803.36,802.5,1.1201667]
[1754862972769,0.21688189,803.36,800.92,0.21690216]
[1754862972770,0.21688189,803.36,802.51,1.1201667]
[1754862974270,0.21688189,803.36,802.52,1.1201667]
[1754862974671,0.21688189,803.36,802.53,1.1201667]
[1754862976271,0.21688189,803.36,802.55,1.1201667]
[1754862977271,0.21688189,803.36,802.56,1.1201667]
[1754862978570,0.21688189,803.36,802.57,1.1201667]
[1754862979072,0.21688189,803.36,802.58,1.1201667]
[1754862979271,0.21688189,803.36,802.59,1.1201667]
[1754862982377,0.21688189,803.36,802.75,1.1201667]
[1754862982675,0.21688189,803.36,802.76,1.1201667]
[1754862982871,0.21688189,803.36,802.71,1.1201667]
[1754862991478,0.21688189,803.36,802.72,1.1201667]
[1754862992478,0.21688189,803.36,802.71,1.1201667]
[1754862992776,0.21688189,803.36,802.75,1.1201667]
[1754862993179,0.21688189,803.36,802.76,1.1201667]
[1754862993782,0.21688189,803.36,802.75,1.1201667]
[1754862994575,0.21688189,803.36,802.67,1.1201667]
[1754862995275,0.21688189,803.36,802.68,1.1201667]
[1754862995980,0.21688189,803.36,802.67,1.1201667]
[1754862997876,0.21688189,803.36,802.69,1.1201667]
[1754862998281,0.21688189,803.36,802.7,1.1201667]
[1754863002182,0.21688189,803.36,802.71,1.1201667]
[1754863004594,0.21688189,803.36,802.79,1.1201667]
[1754863006196,0.21688189,803.36,802.8,1.1201667]
[1754863007697,0.21688189,803.36,802.67,1.1201667]
[1754863007894,0.21688189,803.36,802.68,1.1201667]
[1754863008298,0.21688189,803.36,802.69,1.1201667]
[1754863010200,0.21688189,803.36,802.65,1.1201667]
[1754863017607,0.21688189,803.36,802.71,1.1201667]
[1754863020005,0.21688189,803.36,802.8,1.1201667]
[1754863020308,0.21688189,803.36,802.78,1.1201667]
[1754863021907,0.21688189,803.36,802.79,1.1201667]
[1754863022505,0.21688189,803.36,802.82,1.1201667]
[1754863023210,0.21688189,803.36,802.8,1.1201667]
[1754863024813,0.21688189,803.36,802.78,1.1201667]
[1754863025908,0.21688189,803.36,802.6,1.6816747]
[1754863025909,0.21688189,803.36,802.66,1.1201667]
[1754863026209,0.21688189,803.36,802.7,1.1201667]
[1754863028015,0.21688189,803.36,802.69,1.1201667]
[1754863029116,0.21688189,803.36,802.68,1.1201667]
[1754863030012,0.21688189,803.36,802.69,1.1201667]
[1754863031013,0.84052032,803.6,802.69,1.1201667]
[1754863031212,0.84052032,803.6,802.68,1.1201667]
[1754863031516,0.84052032,803.59,802.7,1.1201667]
[1754863032118,0.84052032,803.6,802.7,1.1201667]
[1754863033114,0.84052032,803.59,802.7,1.1201667]
[1754863034219,0.84052032,803.6,802.7,1.1201667]
[1754863034515,0.84052032,803.52,802.62,1.1201667]
[1754863035516,0.84052032,803.55,802.59,1.1201667]
[1754863035820,0.21689608,803.32,802.59,1.1201667]
[1754863036019,0.21689608,803.32,802.65,1.1201667]
[1754863036219,0.21689608,803.32,802.64,1.1201667]
[1754863037719,0.21689608,803.32,802.66,1.1201667]
[1754863038120,0.21689608,803.32,802.65,1.1201667]
[1754863038420,0.21689608,803.32,802.66,1.1201667]
[1754863038821,0.21689608,803.32,802.62,1.1201667]
[1754863039020,0.21689608,803.32,802.67,1.1201667]
[1754863039216,0.21689608,803.32,802.66,1.1201667]
[1754863039517,0.21689608,803.32,802.64,1.1201667]
[1754863040121,0.21689608,803.32,802.63,1.1201667]
[1754863041123,0.21689608,803.32,802.62,1.1201667]
[1754863041820,0.21689608,803.32,802.58,1.1201667]
[1754863042021,0.21689608,803.32,802.82,1.1201667]
[1754863042225,0.21689608,803.32,803.09,1.1201667]
[1754863042522,0.21689608,803.32,803.11,1.1201667]
[1754863042722,0.21689608,803.32,803.16,1.1201667]
[1754863043023,0.21689608,803.32,803.12,1.1201667]
[1754863043323,0.21689608,803.32,803.02,1.1201667]
[1754863043526,0.21689608,803.32,802.99,1.1201667]
[1754863044127,0.21689608,803.32,802.94,1.1201667]
[1754863044627,0.21689608,803.32,803.03,1.1201667]
[1754863044822,0.21689608,803.32,803.04,1.1201667]
[1754863045126,0.21689608,803.32,802.99,1.1201667]
[1754863046124,0.21689608,803.32,802.96,1.1201667]
[1754863047122,0.21689608,803.32,802.92,1.1201667]
[1754863048228,0.21689608,803.32,802.89,1.1201667]
[1754863048928,0.21689608,803.32,802.87,1.1201667]
[1754863049223,0.21689608,803.32,802.85,1.1201667]
[1754863050128,0.21689608,803.32,802.83,1.1201667]
[1754863051129,0.21689608,803.32,802.81,1.1201667]
[1754863052130,0.21689608,803.32,802.79,1.1201667]
[1754863052727,0.21689608,803.32,802.8,1.1201667]
[1754863052924,0.21689608,803.32,802.83,1.1201667]
[1754863053130,0.21689608,803.32,802.82,1.1201667]
[1754863053328,0.21689608,803.32,802.9,1.1201667]
[1754863053529,0.21689608,803.32,802.91,1.1201667]
[1754863054232,0.21689608,803.32,802.89,1.1201667]
[1754863054531,0.21689608,803.32,802.02,2.8023031]
[1754863054532,0.21689608,803.32,802.94,1.1201667]
[1754863055028,0.21689608,803.32,802.93,1.1201667]
[1754863056033,0.21689608,803.32,802.05,2.8023031]
[1754863056034,0.21689608,803.32,802.95,1.1201667]
[1754863056230,0.21689608,803.32,802.94,1.1201667]
[1754863057235,0.21689608,803.32,802.93,1.1201667]
[1754863057834,0.21689608,803.32,802.94,1.1201667]
[1754863058240,0.21689608,803.32,802.93,1.1201667]
[1754863059146,0.21689608,803.32,802.92,1.1201667]
[1754863060245,0.21689608,803.32,802.91,1.1201667]
[1754863062147,0.21689608,803.32,802.12,2.8023031]
[1754863062148,0.21689608,803.32,802.93,1.1201667]
[1754863062850,0.21689608,803.32,802.96,1.1201667]
[1754863063349,0.21689608,803.32,802.95,1.1201667]
[1754863065151,0.21689608,803.32,802.94,1.1201667]
[1754863073162,0.21689608,803.32,802.95,1.1201667]
[1754863075063,0.21689608,803.32,802.96,1.1201667]
[1754863077162,0.21689608,803.32,802.97,1.1201667]
[1754863078063,0.21689608,803.32,802.98,1.1201667]
[1754863079065,0.21689608,803.32,802.99,1.1201667]
[1754863081170,0.21689608,803.32,803.0,1.1201667]
[1754863082169,0.21689608,803.32,803.01,1.1201667]
[1754863083168,0.21689608,803.32,803.02,1.1201667]
[1754863084371,0.21689608,803.32,803.03,1.1201667]
[1754863084772,0.21689608,803.32,802.97,1.1201667]
[1754863085174,0.21689608,803.32,802.98,1.1201667]
[1754863086172,0.21689608,803.32,802.99,1.1201667]
[1754863087173,0.21689608,803.32,803.01,1.1201667]
[1754863087577,0.21689608,803.32,802.99,1.1201667]
[1754863088273,0.21689608,803.32,803.0,1.1201667]
[1754863089079,0.21689608,803.32,803.01,1.1201667]
[1754863089375,0.21689608,803.32,803.02,1.1201667]
[1754863090078,0.21689608,803.32,803.03,1.1201667]
[1754863091177,0.21689608,803.32,803.05,1.1201667]
[1754863092082,0.21689608,803.32,803.06,1.1201667]
[1754863092282,0.21689608,803.32,803.08,1.1201667]
[1754863092482,0.21689608,803.32,803.05,1.1201667]
[1754863093079,0.21689608,803.32,803.07,1.1201667]
[1754863094083,0.21689608,803.32,803.1,1.1201667]
[1754863094584,0.21689608,803.32,803.16,1.1201667]
[1754863095183,0.21689608,803.32,803.19,1.1201667]
[1754863095681,0.21689608,803.32,803.2,1.1201667]
[1754863096181,0.21689608,803.32,803.23,1.1201667]
[1754863097186,0.21689608,803.32,803.27,1.1201667]
[1754863097383,0.21689608,803.32,803.3,1.1201667]
[1754863097589,0.21689608,803.32,803.27,1.1201667]
[1754863098187,0.21689608,803.32,803.11,1.6816747]
[1754863098188,0.21689608,803.32,803.3,1.1201667]
[1754863099092,0.21689608,803.32,803.15,1.6816747]
[1754863099292,0.21689608,803.32,803.18,1.6816747]
[1754863100291,0.21689608,803.32,803.21,1.6816747]
[1754863101087,0.21689608,803.32,803.28,1.6816747]
[1754863101287,0.21689608,803.32,803.29,1.6816747]
[1754863101788,0.21689608,803.32,803.28,1.6816747]
[1754863102193,0.21689608,803.32,803.29,1.6816747]
[1754863102394,0.21689608,803.32,802.67,2.8023031]
[1754863102595,0.21689608,803.32,803.28,1.6784666]
[1754863102895,0.21689608,803.32,803.22,1.6784666]
[1754863103095,0.21689608,803.32,803.23,1.6784666]
[1754863104597,0.21689608,803.32,803.21,1.6784666]
[1754863105290,0.21689608,803.32,803.22,1.6784666]
[1754863105896,0.21689608,803.32,803.21,1.6784666]
[1754863107496,0.21689608,803.32,803.2,1.6784666]
[1754863107897,0.21689608,803.32,803.21,1.6784666]
[1754863109099,0.21689608,803.32,803.2,1.6784666]
[1754863110700,0.21689608,803.32,803.21,1.6784666]
[1754863112501,0.21689608,803.32,803.22,1.6784666]
[1754863112901,0.21689608,803.32,803.28,1.6784666]
[1754863114800,0.21689608,803.32,803.29,1.6784666]
[1754863115199,0.21689608,803.32,803.3,1.6784666]
[1754863115700,0.21689608,803.32,803.29,1.6784666]
[1754863115903,0.21689608,803.32,803.31,1.6784666]
[1754863117405,0.21689608,803.32,802.72,2.8023031]
[1754863117605,0.21689608,803.32,802.85,2.8023031]
[1754863124812,0.21689608,803.32,802.86,2.8023031]
[1754863128219,0.21689608,803.32,803.16,1.6776844]
[1754863132923,0.21689608,803.32,803.09,1.6776844]
[1754863134627,0.21689608,803.32,803.25,1.1184578]
[1754863134827,0.21689608,803.32,803.28,1.1184578]
[1754863135027,0.21689608,803.32,803.29,1.1184578]
[1754863135227,0.21689608,803.32,803.28,1.1184578]
[1754863136424,0.21689608,803.32,803.29,1.1184578]
[1754863137222,0.21689608,803.32,803.3,1.1184578]
[1754863137426,0.21689608,803.32,803.26,1.1184578]
[1754863137627,0.21689608,803.32,803.3,1.1184578]
[1754863138325,0.21689608,803.32,803.29,1.1184578]
[1754863139229,0.21689608,803.32,803.28,1.1184578]
[1754863139831,0.21689608,803.32,803.3,1.1184578]
[1754863140526,0.21689608,803.32,803.31,1.1184578]
[1754863140731,0.21689608,803.32,803.09,1.6776844]
[1754863141030,0.21689608,803.32,800.91,5.6046062]
[1754863141031,0.21689608,803.32,803.1,1.6776844]
[1754863141433,0.21689608,803.32,803.3,1.1154799]
[1754863142231,0.21689608,803.32,803.29,1.1154799]
[1754863144334,0.21689608,803.32,803.28,1.1154799]
[1754863144632,0.21689608,803.32,803.07,1.6776844]
[1754863146330,0.21689608,803.32,803.06,1.6776844]
[1754863146530,0.21689608,803.32,803.12,1.6776844]
[1754863147236,0.21689608,803.32,802.17,2.8023031]
[1754863147237,0.21689608,803.32,803.11,1.6776844]
[1754863147436,0.21689608,803.32,803.13,1.6776844]
[1754863147938,0.21689608,803.32,803.12,1.6776844]
[1754863148338,0.21689608,803.32,803.11,1.6776844]
[1754863149638,0.21689608,803.32,803.13,1.6776844]
[1754863150342,0.21689608,803.32,803.12,1.6776844]
[1754863150535,0.21689608,803.32,803.17,1.6776844]
[1754863151441,0.21689608,803.32,803.24,1.6776844]
[1754863154141,0.21689608,803.32,803.23,1.6776844]
[1754863154645,0.21689608,803.32,803.25,1.6776844]
[1754863156046,0.21689608,803.32,803.27,1.6776844]
[1754863157245,0.21689608,803.32,803.26,1.6776844]
[1754863157747,0.21689608,803.32,802.47,2.8023031]
[1754863158042,0.21689608,803.32,802.66,2.8023031]
[1754863159646,0.21689608,803.32,802.67,2.8023031]
[1754863163151,0.21689608,803.32,803.27,1.668779]
[1754863164146,0.21689608,803.32,803.26,1.668779]
[1754863164645,0.21689608,803.32,803.3,1.668779]
[1754863172754,0.02733906,803.32,803.3,1.668779]
[1754863172953,0.02733906,803.32,802.56,2.8023031]
[1754863173155,0.83879079,804.42,802.86,2.8023031]
[1754863173355,0.83879079,804.42,803.57,1.1123253]
[1754863173751,0.83879079,804.41,803.59,1.1123253]
[1754863174356,0.83879079,804.4,803.59,1.1123253]
[1754863174655,0.83879079,804.3,803.48,1.1123253]
[1754863175353,0.83879079,804.3,803.49,1.1123253]
[1754863176057,0.21667123,804.1,803.49,1.1123253]
[1754863178458,0.21667123,804.1,803.48,1.1123253]
[1754863179259,0.21667123,804.1,803.49,1.1123253]
[1754863183260,0.21667123,804.1,803.5,1.1123253]
[1754863184662,0.21667123,804.1,803.53,1.1123253]
[1754863185357,0.21667123,804.1,803.54,1.1123253]
[1754863187163,0.21667123,804.1,803.55,1.1123253]
[1754863188167,0.21667123,804.1,803.57,1.1123253]
[1754863190170,0.21667123,804.1,803.58,1.1123253]
[1754863192372,0.21667123,804.1,803.45,1.6684879]
[1754863192373,0.21667123,804.1,803.59,1.1123253]
[1754863193273,0.21667123,804.1,803.6,1.1123253]
[1754863194272,0.21667123,804.1,803.61,1.1123253]
[1754863194975,0.21667123,804.1,803.54,1.1123253]
[1754863195874,0.21667123,804.1,803.55,1.1123253]
[1754863196270,0.21667123,804.1,803.54,1.1123253]
[1754863196872,0.21667123,804.1,803.47,1.1123253]